Cogmind - Beta 11 X2 @@@ ROGUE MODE // 2021.03.02 @ 23:03:51 Player: lsend Result: Destroyed by P-80 Master with Gamma Rifle Performance ------------- Evolutions (9) 4500 Regions Visited (27) 5400 Robots Destroyed (16) 80 Value Destroyed (704) 704 Prototype IDs (76) 1520 Alien Tech Used (5) 1000 Bonus (17998) 17998 TOTAL SCORE: 31202 Bonus ------- Follower Combat Kills 98 Aligned with FarCom 300 Met Data Miner 300 Met Zhirov 300 Met Warlord at Base 500 MAIN.C Attacked Warlord 500 Found Hidden Lab 3000 Pursued by Intercept 500 Destroyed MAIN.C Guards 500 Met MAIN.C 5000 Destroyed MAIN.C Shell 5000 Met Warlord at Command 2000 Cogmind --------- Core Integrity 0/1600 Matter 300/300 Energy 98/100 System Corruption 6% Temperature Cool (0) Movement Core (50) Location -1/Command Parts ------- > --- POWER (2) -------- (None) > --- PROPULSION (7) --- (None) > --- UTILITY (14) ----- Enhanced Optical Array Advanced Hacking Suite Deep Network Scanner Ghost Barrier > --- WEAPON (2) ------- (None) > --- INVENTORY (5) ---- Micro Fission Core Small Storage Unit Advanced Sensor Array Peak State ------------ > --- POWER ------------ Micro Fission Core Micro Fission Core > --- PROPULSION ------- Cooled Cesium-ion Thruster Improved Diametric Drive Improved Diametric Drive Impulse Thruster Array Impulse Thruster Array > --- UTILITY ---------- Small Storage Unit Advanced Energy Well Inertial Stasis Machine Enhanced Optical Array Improved Targeting Computer Centrium Medium Armor Plating Light Regenerative Plating Experimental Focal Shield Advanced Force Field Point Defense Array Advanced Hacking Suite Deep Network Scanner Advanced System Shield Ghost Barrier > --- WEAPON ----------- Power Sword Longsword +1 > --- INVENTORY -------- Micro Fission Core Field Propulsion Drive Nuclear Pulse Array Advanced Sensor Array Improved Force Field Bomb Drone Bay [Rating: 180] Favorites ----------- Power Micro Fission Core Engine Backup Power III Power Core Micro Fission Core Reactor Light Antimatter Reactor Propulsion Xenon Bombardment Thruster Treads Light Treads Flight Unit Xenon Bombardment Thruster Utility Advanced Signal Interpreter Device Advanced Sensor Array Storage Small Storage Unit Processor Advanced Signal Interpreter Hackware Advanced Hacking Suite Protection Light Regenerative Plating Weapon Scythe Energy Gun Gamma Rifle Energy Cannon Beam Cannon Launcher Grenade Launcher Slashing Weapon Scythe Build | -11 -10 -10 -10 -9 -8 -7 -6 -6 -6 -6 -5 -5 -5 -5 -5 -4 -4 -4 -4 -4 -3 -3 -3 -3 -2 -1 -1 ------- Run | Scr Mat Min Exi Min Mat Fac Fac Low Low Dat Pro Fac Upp Upp Zhi Pro Fac Upp Upp War Pro Res Arm Lab Res Acc Com Slots Evolved 18 | . . . . . 4 2 2 . . . . 2 . . . . 2 . . . . 2 . . 2 2 . Power 1 | . . . . . . . . . . . . 1 . . . . . . . . . . . . . . . Propulsion 5 | . . . . . 2 1 1 . . . . . . . . . 1 . . . . . . . . . . Utility 12 | . . . . . 2 1 1 . . . . 1 . . . . 1 . . . . 2 . . 2 2 . Weapon . | . . . . . . . . . . . . . . . . . . . . . . . . . . . . Parts Attached 102 | 3 2 1 . 3 . 11 8 2 . . 2 16 1 . 2 . 6 1 . 7 . 1 1 1 4 4 26 Power 7 | . . . . . . . . . . . 1 4 . . . . . . . . . . . . . . 2 Engine . | . . . . . . . . . . . . . . . . . . . . . . . . . . . . Core 6 | . . . . . . . . . . . 1 4 . . . . . . . . . . . . . . 1 Reactor 1 | . . . . . . . . . . . . . . . . . . . . . . . . . . . 1 Propulsion 33 | 2 . . . 2 . 6 2 1 . . . 4 . . . . 3 . . 1 . . . . . . 12 Treads 2 | 2 . . . . . . . . . . . . . . . . . . . . . . . . . . . Leg . | . . . . . . . . . . . . . . . . . . . . . . . . . . . . Wheel . | . . . . . . . . . . . . . . . . . . . . . . . . . . . . Hover . | . . . . . . . . . . . . . . . . . . . . . . . . . . . . Flight 31 | . . . . 2 . 6 2 1 . . . 4 . . . . 3 . . 1 . . . . . . 12 Utility 48 | 1 . . . 1 . 4 6 1 . . 1 4 1 . 2 . 3 1 . 6 . 1 1 1 4 3 7 Device 28 | . . . . 1 . 1 5 1 . . 1 1 1 . 1 . 1 1 . 5 . 1 . . . 3 5 Storage 4 | 1 . . . . . . . . . . . 1 . . 1 . . . . . . . 1 . . . . Processor 5 | . . . . . . 1 1 . . . . . . . . . . . . . . . . . 3 . . Hackware 6 | . . . . . . 1 . . . . . 2 . . . . 1 . . 1 . . . 1 . . . Protection 5 | . . . . . . 1 . . . . . . . . . . 1 . . . . . . . 1 . 2 Artifact . | . . . . . . . . . . . . . . . . . . . . . . . . . . . . Weapon 14 | . 2 1 . . . 1 . . . . . 4 . . . . . . . . . . . . . 1 5 Energy Gun 2 | . . . . . . . . . . . . . . . . . . . . . . . . . . . 2 Energy Cannon 2 | . 2 . . . . . . . . . . . . . . . . . . . . . . . . . . Ballistic Gun . | . . . . . . . . . . . . . . . . . . . . . . . . . . . . Ballistic Cannon . | . . . . . . . . . . . . . . . . . . . . . . . . . . . . Launcher 1 | . . 1 . . . . . . . . . . . . . . . . . . . . . . . . . Special Weapon . | . . . . . . . . . . . . . . . . . . . . . . . . . . . . Impact Weapon . | . . . . . . . . . . . . . . . . . . . . . . . . . . . . Slashing Weapon 9 | . . . . . . 1 . . . . . 4 . . . . . . . . . . . . . 1 3 Piercing Weapon . | . . . . . . . . . . . . . . . . . . . . . . . . . . . . Special Melee Weapon . | . . . . . . . . . . . . . . . . . . . . . . . . . . . . Unidentified Prototypes 16 | . . . . 1 . . 1 . . . 1 . . . 2 . . . . 5 . . 1 3 . . 2 Parts Lost 41 | . . . . . . 2 . 1 1 . 1 . . . . . . . . . . . . . . 2 34 Power 4 | . . . . . . . . . . . . . . . . . . . . . . . . . . . 4 Propulsion 19 | . . . . . . 2 . . 1 . 1 . . . . . . . . . . . . . . 1 14 Utility 12 | . . . . . . . . . . . . . . . . . . . . . . . . . . . 12 Weapon 6 | . . . . . . . . 1 . . . . . . . . . . . . . . . . . 1 4 Highest Loss Streak 13 | . . . . . . 2 . 1 1 . 1 . . . . . . . . . . . . . . 2 13 Average Slot Usage (%) 79 | . 42 42 42 38 27 67 90 93 92 86 85 86 94 94 92 94 88 89 89 88 89 80 80 87 82 84 77 Core 6 | . . . . . . . . . . . 2 9 11 11 11 11 10 10 10 10 10 9 9 9 8 8 6 Treads 2 | . 28 28 28 21 . . . . . . . . . . . . . . . . . . . . . . . Flight 23 | . . . . . 18 30 32 40 39 33 32 27 29 29 29 29 26 26 26 26 26 23 23 23 21 19 18 Device 8 | . . . . 3 . 4 13 13 13 13 13 5 10 11 9 11 5 9 10 9 10 9 9 9 8 10 9 Storage 4 | . . . . . . . . . . . . 5 5 5 8 11 10 5 5 5 5 4 4 9 8 8 7 Processor 7 | . . . . . . 5 10 13 13 13 13 11 11 11 8 5 5 5 5 5 5 4 4 4 4 12 10 Hackware 10 | . . . . . . 5 6 6 6 6 6 8 11 11 11 11 14 15 15 15 15 14 14 16 17 16 15 Protection 3 | . . . . . . 6 6 6 6 6 6 5 . . . . 4 5 5 5 5 4 4 4 4 4 3 Launcher 1 | . . 3 14 14 9 7 6 . . . . . . . . . . . . . . . . . . . . Slashing Weapon 7 | . . . . . . 4 6 6 6 6 6 9 11 11 11 11 10 10 10 10 10 9 9 9 8 6 5 Naked Turns . | . . . . . . . . . . . . . . . . . . . . . . . . . . . . Heaviest Build 55 | 5 5 3 3 3 3 6 13 13 10 10 15 25 25 25 28 28 38 38 36 36 36 37 40 40 40 44 55 Greatest Support 68 | 3 3 3 3 4 4 10 22 18 18 18 21 36 36 36 36 36 48 48 48 48 48 48 48 48 48 48 68 Greatest Overweight (x) 1 | 1 1 . . . . . . . . . . 1 . . . . . . . . . . . . . . . Average Overweight (x) . | . . . . . . . . . . . . . . . . . . . . . . . . . . . . Largest Inventory Capacity 8 | 8 8 5 5 5 5 5 5 5 5 5 5 8 8 8 8 8 8 8 8 8 8 8 8 8 8 8 8 Average Capacity 6 | 7 5 5 5 5 5 5 5 5 5 5 5 7 8 8 8 8 8 8 8 8 8 8 8 8 8 8 7 Most Carried 8 | . 5 5 5 5 5 5 5 5 5 5 5 8 8 8 8 8 8 8 8 8 8 8 8 7 7 8 8 Average Carried 6 | . 2 5 4 4 5 4 4 5 5 5 5 7 8 8 8 8 8 8 8 7 8 7 7 6 7 7 5 Final Capacity 8 | 8 5 5 5 5 5 5 5 5 5 5 5 8 8 8 8 8 8 8 8 8 8 8 8 8 8 8 5 Final Carried 8 | . 5 5 5 5 5 5 5 5 5 5 5 8 8 8 8 8 8 8 8 8 8 8 6 7 7 8 3 Class Distribution -------------------- 38% | Hacker-Sprinter 32% | Mutant 20% | Wizard-Sprinter 4% | Sprinter Dominant Class ---------------- Mutant | -10/Materials Mutant | -10/Mines Mutant | -10/Exiles Mutant | -9/Mines Mutant | -8/Materials Mutant | -7/Factory Mutant | -6/Factory Mutant | -6/Lower Caves Mutant | -6/Lower Caves Mutant | -6/Data Miner Mutant | -5/Proximity Caves Hacker-Sprinter | -5/Factory Hacker-Sprinter | -5/Upper Caves Hacker-Sprinter | -5/Upper Caves Hacker-Sprinter | -5/Zhirov Hacker-Sprinter | -4/Proximity Caves Hacker-Sprinter | -4/Factory Hacker-Sprinter | -4/Upper Caves Hacker-Sprinter | -4/Upper Caves Hacker-Sprinter | -4/Warlord Hacker-Sprinter | -3/Proximity Caves Hacker-Sprinter | -3/Research Hacker-Sprinter | -3/Armory Hacker-Sprinter | -3/Lab Wizard-Sprinter | -2/Research Wizard-Sprinter | -1/Access Wizard-Sprinter | -1/Command Resources | -11 -10 -10 -10 -9 -8 -7 -6 -6 -6 -6 -5 -5 -5 -5 -5 -4 -4 -4 -4 -4 -3 -3 -3 -3 -2 -1 -1 ----------- Run | Scr Mat Min Exi Min Mat Fac Fac Low Low Dat Pro Fac Upp Upp Zhi Pro Fac Upp Upp War Pro Res Arm Lab Res Acc Com Matter Collected 1187 | 211 34 3 . . . 107 80 65 . . 30 20 77 . . . 89 43 34 . 44 . . . . 40 310 Remotely . | . . . . . . . . . . . . . . . . . . . . . . . . . . . . Salvage Created 846 | . 49 . . . . 59 95 64 . . . 113 . . . . 89 . . . . . . . . . 377 Parts 26 | . 4 . . . . 1 . 6 . . . . . . . . 4 . . . . . . . . . 11 Haulers Intercepted 4 | . . . . . . 1 1 . . . . 1 . . . . 1 . . . . . . . . . . Recyclers Shooed . | . . . . . . . . . . . . . . . . . . . . . . . . . . . . Parts Field Recycled . | . . . . . . . . . . . . . . . . . . . . . . . . . . . . Retrieved Matter . | . . . . . . . . . . . . . . . . . . . . . . . . . . . . Parts Self-Destructed 17 | . . . . . . . . 2 . . 12 . 2 . . . . . . 1 . . . . . . . Prevented 7 | . . . . . . . . . . . . . 1 . . . . . . 6 . . . . . . . Kills | -11 -10 -10 -10 -9 -8 -7 -6 -6 -6 -6 -5 -5 -5 -5 -5 -4 -4 -4 -4 -4 -3 -3 -3 -3 -2 -1 -1 ------- Run | Scr Mat Min Exi Min Mat Fac Fac Low Low Dat Pro Fac Upp Upp Zhi Pro Fac Upp Upp War Pro Res Arm Lab Res Acc Com Combat Hostiles Destroyed 9 | . 3 . . . . . . 3 . . . . . . . . . . . . . . . . . . 3 Melee 3 | . . . . . . . . . . . . . . . . . . . . . . . . . . . 3 Cannons 3 | . 3 . . . . . . . . . . . . . . . . . . . . . . . . . . AOE 3 | . . . . . . . . 3 . . . . . . . . . . . . . . . . . . . Classes Destroyed 6 | . 1 . . . . 1 . 1 . . . . . . . . . . . . . . . . . . 3 Hauler 4 | . . . . . . 1 1 . . . . 1 . . . . 1 . . . . . . . . . . Watcher 3 | . . . . . . . . . . . . . . . . . . . . . . . . . . . 3 Swarmer 6 | . 3 . . . . . . 3 . . . . . . . . . . . . . . . . . . . Sentry 2 | . . . . . . . . . . . . . . . . . . . . . . . . . . . 2 Combat Programmer 1 | . . . . . . . . . . . . . . . . . . . . . . . . . . . 1 Samaritan 1 | . . . . . . . . 1 . . . . . . . . . . . . . . . . . . . Best Kill Streak 3 | . 3 . . . . 1 1 3 . . . 1 . . . . 1 . . . . . . . . . 3 Combat Bots Only 3 | . 3 . . . . . . 3 . . . . . . . . . . . . . . . . . . 1 Max Kills in Single Turn 2 | . 1 . . . . 1 1 2 . . . 1 . . . . 1 . . . . . . . . . 1 Gunslinging . | . . . . . . . . . . . . . . . . . . . . . . . . . . . . Exploded 2 | . . . . . . . . 2 . . . . . . . . . . . . . . . . . . . Melee 1 | . . . . . . . . . . . . . . . . . . . . . . . . . . . 1 Uniques/NPCs Destroyed . | . . . . . . . . . . . . . . . . . . . . . . . . . . . . Combat | -11 -10 -10 -10 -9 -8 -7 -6 -6 -6 -6 -5 -5 -5 -5 -5 -4 -4 -4 -4 -4 -3 -3 -3 -3 -2 -1 -1 -------- Run | Scr Mat Min Exi Min Mat Fac Fac Low Low Dat Pro Fac Upp Upp Zhi Pro Fac Upp Upp War Pro Res Arm Lab Res Acc Com Damage Taken 5904 | . 300 63 . . . 158 30 18 143 . 26 44 . . . 12 . . 29 36 11 71 16 39 . 614 4294 Core 1751 | . 109 14 . . . 42 . 9 16 . . 10 . . . . . . . 8 . 14 8 26 . 48 1447 Absorbed by Shields 812 | . . . . . . . 11 6 36 . 10 16 . . . 5 . . 32 38 11 75 18 39 . 172 343 Core Remaining (%) 93 | 100 . . . 50 100 94 . . . . 97 . . . . 99 . . . . 99 . . 98 100 . . Volleys Fired 25 | . 9 . . . . . . 2 . . . . . . . . . . . . . . . . . . 14 Largest 2 | . 2 . . . . . . 1 . . . . . . . . . . . . . . . . . . 2 Hottest 150 | . 120 . . . . . . 30 . . . . . . . . . . . . . . . . . . 150 Shots Fired 42 | . 16 . . . . . . 2 . . . . . . . . . . . . . . . . . . 24 Gun 24 | . . . . . . . . . . . . . . . . . . . . . . . . . . . 24 Cannon 16 | . 16 . . . . . . . . . . . . . . . . . . . . . . . . . . Launcher 2 | . . . . . . . . 2 . . . . . . . . . . . . . . . . . . . Special . | . . . . . . . . . . . . . . . . . . . . . . . . . . . . Kinetic . | . . . . . . . . . . . . . . . . . . . . . . . . . . . . Thermal 16 | . 16 . . . . . . . . . . . . . . . . . . . . . . . . . . Explosive 2 | . . . . . . . . 2 . . . . . . . . . . . . . . . . . . . Electromagnetic 24 | . . . . . . . . . . . . . . . . . . . . . . . . . . . 24 Robot Hit Streak 12 | . 3 . . . . . . 2 . . . . . . . . . . . . . . . . . . 12 Robot Miss Streak 4 | . 4 . . . . . . . . . . . . . . . . . . . . . . . . . 1 Penetration Max . | . . . . . . . . . . . . . . . . . . . . . . . . . . . . Secondary Targets . | . . . . . . . . . . . . . . . . . . . . . . . . . . . . Shots Hit Robots 87 | . 6 . . . . 1 9 1 . . . 8 . . . . 2 . . . . . . . . . 60 Core Hits 33 | . 3 . . . . 1 2 7 . . . 2 . . . . 1 . . . . . . . . . 17 Critical Hits 1 | . . . . . . . . . . . . . . . . . . . . . . . . . . . 1 Critical Kills . | . . . . . . . . . . . . . . . . . . . . . . . . . . . . Critical Parts Destroyed . | . . . . . . . . . . . . . . . . . . . . . . . . . . . . Melee Attacks 162 | . . . . . . 3 14 . 1 . 5 19 . 1 . 14 10 . . . 5 3 8 6 2 6 65 Impact . | . . . . . . . . . . . . . . . . . . . . . . . . . . . . Slashing 162 | . . . . . . 3 14 . 1 . 5 19 . 1 . 14 10 . . . 5 3 8 6 2 6 65 Piercing . | . . . . . . . . . . . . . . . . . . . . . . . . . . . . Sneak Attacks 8 | . . . . . . 1 1 . . . . 1 . . . . 2 . . . . . . . . . 3 Combat Hostiles 1 | . . . . . . . . . . . . . . . . . . . . . . . . . . . 1 Follow-up Attacks 6 | . . . . . . . . . . . . . . . . . 1 . . . . . . . . . 5 Damage Inflicted 3465 | . 106 13 . . . 101 384 224 . . . 333 . . . . 207 . . . . . . . . . 2097 Guns 11 | . . . . . . . . . . . . . . . . . . . . . . . . . . . 11 Cannons 106 | . 106 . . . . . . . . . . . . . . . . . . . . . . . . . . Explosions 224 | . . . . . . . . 224 . . . . . . . . . . . . . . . . . . . Melee 3111 | . . . . . . 101 384 . . . . 333 . . . . 207 . . . . . . . . . 2086 Ramming 13 | . . 13 . . . . . . . . . . . . . . . . . . . . . . . . . Kinetic . | . . . . . . . . . . . . . . . . . . . . . . . . . . . . Thermal 106 | . 106 . . . . . . . . . . . . . . . . . . . . . . . . . . Explosive 224 | . . . . . . . . 224 . . . . . . . . . . . . . . . . . . . Electromagnetic 11 | . . . . . . . . . . . . . . . . . . . . . . . . . . . 11 Impact . | . . . . . . . . . . . . . . . . . . . . . . . . . . . . Slashing 3111 | . . . . . . 101 384 . . . . 333 . . . . 207 . . . . . . . . . 2086 Piercing . | . . . . . . . . . . . . . . . . . . . . . . . . . . . . Highest Corruption 5 | . . . . . . 2 1 1 1 1 1 . . . . . . . . . . . 2 3 . . 5 Average Corruption 1 | . . . . . . 2 1 1 1 1 1 . . . . . . . . . . . 2 2 . . 2 Corruption Purged . | . . . . . . . . . . . . . . . . . . . . . . . . . . . . Effects 9 | . . . . . . 2 . 1 . . 2 . . . . . . . . . . . . 1 . . 3 Message Errors 1 | . . . . . . . . . . . . . . . . . . . . . . . . . . . 1 Matter Fused 1 | . . . . . . . . . . . . . . . . . . . . . . . . . . . 1 Heat Flow Errors 2 | . . . . . . 1 . . . . . . . . . . . . . . . . . 1 . . . Energy Discharges 2 | . . . . . . 1 . . . . 1 . . . . . . . . . . . . . . . . Data Loss (minor) 2 | . . . . . . . . 1 . . 1 . . . . . . . . . . . . . . . . Weapon Failures 1 | . . . . . . . . . . . . . . . . . . . . . . . . . . . 1 Overload Shots . | . . . . . . . . . . . . . . . . . . . . . . . . . . . . Overflow Damage 91 | . . . . . . . . 13 . . . 1 . . . . . . . . . . . . . . 77 Projectiles . | . . . . . . . . . . . . . . . . . . . . . . . . . . . . Explosions 13 | . . . . . . . . 13 . . . . . . . . . . . . . . . . . . . Melee 78 | . . . . . . . . . . . . 1 . . . . . . . . . . . . . . 77 Knockbacks . | . . . . . . . . . . . . . . . . . . . . . . . . . . . . Impact . | . . . . . . . . . . . . . . . . . . . . . . . . . . . . Kinetic . | . . . . . . . . . . . . . . . . . . . . . . . . . . . . Secondary . | . . . . . . . . . . . . . . . . . . . . . . . . . . . . Self-Inflicted Damage 30 | . . 6 . . . . . 24 . . . . . . . . . . . . . . . . . . . Shots 1 | . . . . . . . . 1 . . . . . . . . . . . . . . . . . . . Rammed 2 | . . 2 . . . . . . . . . . . . . . . . . . . . . . . . . Targets Rammed 2 | . . 2 . . . . . . . . . . . . . . . . . . . . . . . . . Kicked . | . . . . . . . . . . . . . . . . . . . . . . . . . . . . Crushed . | . . . . . . . . . . . . . . . . . . . . . . . . . . . . Highest Temperature 335 | . 335 . . . . 255 320 . . . . 38 209 75 19 . . . . . . . . 117 . . 75 Average Temperature 67 | . 180 . . . . 140 157 . . . . 14 98 41 11 . . . . . . . . 63 . . 26 Received Heat Transfer 191 | . 42 . . . . 6 4 . . . 12 6 . . . 6 . . . . . 8 . . . . 107 Siege Activations . | . . . . . . . . . . . . . . . . . . . . . . . . . . . . Robots Corrupted . | . . . . . . . . . . . . . . . . . . . . . . . . . . . . Combat Hostiles . | . . . . . . . . . . . . . . . . . . . . . . . . . . . . Parts Fried . | . . . . . . . . . . . . . . . . . . . . . . . . . . . . Impact Corruptions . | . . . . . . . . . . . . . . . . . . . . . . . . . . . . Robots Melted . | . . . . . . . . . . . . . . . . . . . . . . . . . . . . Combat Hostiles . | . . . . . . . . . . . . . . . . . . . . . . . . . . . . Parts Melted . | . . . . . . . . . . . . . . . . . . . . . . . . . . . . Heat Transferred 222 | . 222 . . . . . . . . . . . . . . . . . . . . . . . . . . Parts Sabotaged . | . . . . . . . . . . . . . . . . . . . . . . . . . . . . Parts Stolen . | . . . . . . . . . . . . . . . . . . . . . . . . . . . . Parts Stripped . | . . . . . . . . . . . . . . . . . . . . . . . . . . . . Power Chain Reactions . | . . . . . . . . . . . . . . . . . . . . . . . . . . . . Missiles Intercepted 4 | . . . . . . . . . . . . . . . . . . . . . . . . . . . 4 Alert | -11 -10 -10 -10 -9 -8 -7 -6 -6 -6 -6 -5 -5 -5 -5 -5 -4 -4 -4 -4 -4 -3 -3 -3 -3 -2 -1 -1 ------- Run | Scr Mat Min Exi Min Mat Fac Fac Low Low Dat Pro Fac Upp Upp Zhi Pro Fac Upp Upp War Pro Res Arm Lab Res Acc Com Peak Influence 431 | . 116 75 . . 30 155 225 . . . . 120 . . . . 136 . . . . 283 385 . 81 156 431 Initial 148 | . . 45 . . . 13 75 . . . . 39 . . . . 9 . . . . 40 148 . . 48 92 Average 120 | . 64 55 . . 13 65 123 . . . . 65 . . . . 44 . . . . 149 229 . 22 58 261 Maximum Alert Level 2 | . . . . . . . 1 . . . . . . . . . . . . . . 1 1 . . . 2 Low Security (%) 82 | 100 100 100 . 100 100 100 92 . . . . 100 . . . . 100 . . . . 73 42 . 100 100 44 Level 1 13 | . . . . . . . 7 . . . . . . . . . . . . . . 26 57 . . . 37 Level 2 4 | . . . . . . . . . . . . . . . . . . . . . . . . . . . 17 Level 3 . | . . . . . . . . . . . . . . . . . . . . . . . . . . . . Level 4 . | . . . . . . . . . . . . . . . . . . . . . . . . . . . . Level 5 . | . . . . . . . . . . . . . . . . . . . . . . . . . . . . High Security . | . . . . . . . . . . . . . . . . . . . . . . . . . . . . Max Security . | . . . . . . . . . . . . . . . . . . . . . . . . . . . . Squads Dispatched 20 | . 2 . . . . 3 2 . . . . 4 . . . . . . . . . . . . 2 3 4 Investigation 4 | . . . . . . . 1 . . . . 1 . . . . . . . . . . . . . . 2 Extermination 2 | . . . . . . . . . . . . 1 . . . . . . . . . . . . . . 1 Reinforcement 12 | . 2 . . . . 3 1 . . . . 2 . . . . . . . . . . . . 2 1 1 Assault . | . . . . . . . . . . . . . . . . . . . . . . . . . . . . Garrison . | . . . . . . . . . . . . . . . . . . . . . . . . . . . . Intercept 2 | . . . . . . . . . . . . . . . . . . . . . . . . . . 2 . Construction Impeded . | . . . . . . . . . . . . . . . . . . . . . . . . . . . . Haulers Reinforced . | . . . . . . . . . . . . . . . . . . . . . . . . . . . . Stealth | -11 -10 -10 -10 -9 -8 -7 -6 -6 -6 -6 -5 -5 -5 -5 -5 -4 -4 -4 -4 -4 -3 -3 -3 -3 -2 -1 -1 --------- Run | Scr Mat Min Exi Min Mat Fac Fac Low Low Dat Pro Fac Upp Upp Zhi Pro Fac Upp Upp War Pro Res Arm Lab Res Acc Com Distress Signals 4 | . . . . . 1 . 1 . . . . . . . . . . . . . . . 1 . . 1 . Communications Jammed . | . . . . . . . . . . . . . . . . . . . . . . . . . . . . Distress Signals . | . . . . . . . . . . . . . . . . . . . . . . . . . . . . Times Spotted 186 | . 11 5 . . 2 5 8 3 8 . 3 9 . . . 1 6 . 5 2 5 9 4 1 2 18 79 Peak Tracking Total 64 | . 5 3 . . 3 3 4 3 4 . 3 6 . . . 1 5 . 5 2 4 6 3 1 2 10 64 Tactical Retreats 17 | . . 2 . . . . 1 . 3 . . 2 . . . 1 . . . . 1 1 . . . 2 4 Traps | -11 -10 -10 -10 -9 -8 -7 -6 -6 -6 -6 -5 -5 -5 -5 -5 -4 -4 -4 -4 -4 -3 -3 -3 -3 -2 -1 -1 ------- Run | Scr Mat Min Exi Min Mat Fac Fac Low Low Dat Pro Fac Upp Upp Zhi Pro Fac Upp Upp War Pro Res Arm Lab Res Acc Com Traps Triggered 9 | . . . . . . 2 1 . . . . 3 . . . . . . . . . . 2 . 1 . . Indirectly . | . . . . . . . . . . . . . . . . . . . . . . . . . . . . Trap Hack Attempts . | . . . . . . . . . . . . . . . . . . . . . . . . . . . . Triggered . | . . . . . . . . . . . . . . . . . . . . . . . . . . . . Disarmed . | . . . . . . . . . . . . . . . . . . . . . . . . . . . . Reprogrammed . | . . . . . . . . . . . . . . . . . . . . . . . . . . . . Reused . | . . . . . . . . . . . . . . . . . . . . . . . . . . . . Traps Extracted . | . . . . . . . . . . . . . . . . . . . . . . . . . . . . Installed 1 | . . . . . . . . . . . . . . . . 1 . . . . . . . . . . . Triggered 7 | . . . . . . . . . . . 2 . 1 . . . . . . 4 . . . . . . . Machines | -11 -10 -10 -10 -9 -8 -7 -6 -6 -6 -6 -5 -5 -5 -5 -5 -4 -4 -4 -4 -4 -3 -3 -3 -3 -2 -1 -1 ---------- Run | Scr Mat Min Exi Min Mat Fac Fac Low Low Dat Pro Fac Upp Upp Zhi Pro Fac Upp Upp War Pro Res Arm Lab Res Acc Com Machines Disabled 10 | . . . . . . . . . . . 1 . . 1 . . . . . . . . 5 1 . 2 . Max in Single Turn 1 | . . . . . . . . . . . 1 . . 1 . . . . . . . . 1 1 . 1 . Machines Sabotaged . | . . . . . . . . . . . . . . . . . . . . . . . . . . . . Garrisons Compromised . | . . . . . . . . . . . . . . . . . . . . . . . . . . . . Overloaded Fab Kills . | . . . . . . . . . . . . . . . . . . . . . . . . . . . . Fab Network Shutdowns . | . . . . . . . . . . . . . . . . . . . . . . . . . . . . Hacking | -11 -10 -10 -10 -9 -8 -7 -6 -6 -6 -6 -5 -5 -5 -5 -5 -4 -4 -4 -4 -4 -3 -3 -3 -3 -2 -1 -1 --------- Run | Scr Mat Min Exi Min Mat Fac Fac Low Low Dat Pro Fac Upp Upp Zhi Pro Fac Upp Upp War Pro Res Arm Lab Res Acc Com Machines Accessed 69 | . 5 . 2 1 . 3 8 . . 4 . 11 . 1 4 . 3 1 . 2 . 3 3 . 3 3 12 Terminals 40 | . 3 . . . . 3 5 . . . . 7 . . . . 2 . . . . 2 2 . 2 3 11 Fabricators 5 | . . . . . . . 1 . . . . 3 . . . . . . . . . . . . 1 . . Repair Stations 2 | . 1 . . . . . 1 . . . . . . . . . . . . . . . . . . . . Recycling Units 4 | . 1 . . . . . . . . . . . . . . . 1 . . . . . 1 . . . 1 Scanalyzers 3 | . . . . . . . 1 . . . . 1 . . . . . . . . . 1 . . . . . Garrison Access . | . . . . . . . . . . . . . . . . . . . . . . . . . . . . Total Hacks 216 | . 9 . 6 1 . 9 16 . . 22 . 32 . 1 17 . 6 1 . 2 . 22 9 . 18 9 36 Successful 136 | . 5 . 6 1 . 7 7 . . 22 . 16 . 1 17 . 3 1 . 2 . 7 3 . 13 4 21 Failed 80 | . 4 . . . . 2 9 . . . . 16 . . . . 3 . . . . 15 6 . 5 5 15 Catastrophic 15 | . . . . . . . 5 . . . . 5 . . . . . . . . . 2 1 . . 2 . Database Lockouts . | . . . . . . . . . . . . . . . . . . . . . . . . . . . . Manual 42 | . 2 . 1 . . 1 4 . . . . 6 . 1 . . 3 . . 1 . 5 . 1 3 3 11 Terminals 129 | . 5 . . . . 9 10 . . . . 15 . . . . 4 . . . . 19 8 . 16 9 34 Fabricators 14 | . . . . . . . 3 . . . . 9 . . . . . . . . . . . . 2 . . Repair Stations 4 | . 3 . . . . . 1 . . . . . . . . . . . . . . . . . . . . Recycling Units 6 | . 1 . . . . . . . . . . . . . . . 2 . . . . . 1 . . . 2 Scanalyzers 13 | . . . . . . . 2 . . . . 8 . . . . . . . . . 3 . . . . . Garrison Access . | . . . . . . . . . . . . . . . . . . . . . . . . . . . . Terminal Hacks 105 | . 3 . 6 1 . 6 3 . . 22 . 3 . 1 17 . 1 1 . 2 . 4 2 . 9 4 20 Record 21 | . . . 5 . . . . . . 11 . . . . 5 . . . . . . . . . . . . Part Schematic 7 | . . . . . . . . . . 3 . . . . 4 . . . . . . . . . . . . Robot Schematic 5 | . . . . . . . . . . 5 . . . . . . . . . . . . . . . . . Robot Analysis 4 | . . . . . . . . . . . . . . . 4 . . . . . . . . . . . . Prototype ID Bank 13 | . 1 . . . . . . . . 3 . . . . 4 . 1 . . . . 1 . . 1 . 2 Open Door 6 | . . . . 1 . . . . . . . . . 1 . . . 1 . 2 . . . . . . 1 Level Access Points 2 | . . . . . . . . . . . . . . . . . . . . . . . . . 1 . 1 Branch Access Points 4 | . 1 . . . . 1 . . . . . . . . . . . . . . . 1 . . . 1 . Emergency Access Points 7 | . . . . . . . 1 . . . . 1 . . . . . . . . . . 1 . 1 . 3 Machine Index 2 | . . . . . . . . . . . . . . . . . . . . . . . . . 1 . 1 Terminal Index 1 | . . . . . . 1 . . . . . . . . . . . . . . . . . . . . . Repair Station Index 1 | . . . . . . . . . . . . . . . . . . . . . . . . . . . 1 Recycling Unit Index 1 | . . . . . . . . . . . . . . . . . . . . . . . . . . . 1 Scanalyzer Index 1 | . . . . . . . . . . . . . . . . . . . . . . . . . . . 1 Alert Level 2 | . . . . . . . . . . . . . . . . . . . . . . . . . 1 . 1 Locate Traps 8 | . 1 . . . . 2 . . . . . . . . . . . . . . . . 1 . . 2 2 Patrol Status 2 | . . . . . . 1 . . . . . . . . . . . . . . . . . . . . 1 Transport Status 1 | . . . . . . . . . . . . . . . . . . . . . . . . . . 1 . Recall Assault 1 | . . . . . . . . . . . . . . . . . . . . . . . . . 1 . . Hauler Manifests 1 | . . . . . . . . . . . . . . . . . . . . . . 1 . . . . . Registered Components 1 | . . . . . . . . . . . . . . . . . . . . . . . . . 1 . . Registered Prototypes 2 | . . . . . . . . . . . . . . . . . . . . . . . . . 1 . 1 Zone Layout 7 | . . . . . . 1 2 . . . . 2 . . . . . . . . . 1 . . 1 . . EX-Prototype ID Bank 1 | . . . 1 . . . . . . . . . . . . . . . . . . . . . . . . Disengage Seal 4 | . . . . . . . . . . . . . . . . . . . . . . . . . . . 4 Fabricator Hacks 8 | . . . . . . . 1 . . . . 5 . . . . . . . . . . . . 2 . . Load Schematic 5 | . . . . . . . 1 . . . . 3 . . . . . . . . . . . . 1 . . Build 3 | . . . . . . . . . . . . 2 . . . . . . . . . . . . 1 . . Repair Station Hacks 1 | . . . . . . . 1 . . . . . . . . . . . . . . . . . . . . Refit 1 | . . . . . . . 1 . . . . . . . . . . . . . . . . . . . . Recycling Unit Hacks 4 | . 1 . . . . . . . . . . . . . . . 1 . . . . . 1 . . . 1 Retrieve Components 4 | . 1 . . . . . . . . . . . . . . . 1 . . . . . 1 . . . 1 Scanalyzer 11 | . . . . . . . 2 . . . . 7 . . . . . . . . . 2 . . . . . Insert Component 5 | . . . . . . . 1 . . . . 3 . . . . . . . . . 1 . . . . . Analyze 6 | . . . . . . . 1 . . . . 4 . . . . . . . . . 1 . . . . . Garrison Access Hacks . | . . . . . . . . . . . . . . . . . . . . . . . . . . . . Unauthorized Hacks 7 | . 1 . . . . 1 . . . . . 1 . . . . 1 . . . . 1 . . 2 . . Terminals 7 | . 1 . . . . 1 . . . . . 1 . . . . 1 . . . . 1 . . 2 . . Track 1 | . . . . . . . . . . . . . . . . . . . . . . . . . 1 . . Assimilate 1 | . . . . . . . . . . . . 1 . . . . . . . . . . . . . . . Botnet 5 | . 1 . . . . 1 . . . . . . . . . . 1 . . . . 1 . . 1 . . Fabricators . | . . . . . . . . . . . . . . . . . . . . . . . . . . . . Repair Stations . | . . . . . . . . . . . . . . . . . . . . . . . . . . . . Recycling Units . | . . . . . . . . . . . . . . . . . . . . . . . . . . . . Scanalyzers . | . . . . . . . . . . . . . . . . . . . . . . . . . . . . Garrison Access . | . . . . . . . . . . . . . . . . . . . . . . . . . . . . Data Cores Recovered . | . . . . . . . . . . . . . . . . . . . . . . . . . . . . Used . | . . . . . . . . . . . . . . . . . . . . . . . . . . . . Hacking Detections 39 | . 4 . . . . 2 6 . . . . 10 . . . . 1 . . . . 2 2 . 1 3 8 Full Trace Events 2 | . . . . . . . 1 . . . . 1 . . . . . . . . . . . . . . . Feedback Events . | . . . . . . . . . . . . . . . . . . . . . . . . . . . . Feedback Blocked . | . . . . . . . . . . . . . . . . . . . . . . . . . . . . Robot Schematics Acquired 5 | . . . . . . . . . . 5 . . . . . . . . . . . . . . . . . Robots Built . | . . . . . . . . . . . . . . . . . . . . . . . . . . . . Matter . | . . . . . . . . . . . . . . . . . . . . . . . . . . . . Time . | . . . . . . . . . . . . . . . . . . . . . . . . . . . . Total Robot Build Rating . | . . . . . . . . . . . . . . . . . . . . . . . . . . . . Part Schematics Acquired 11 | . . . . . . . 1 . . 3 . 2 . . 4 . . . . . . 1 . . . . . Parts Built 2 | . . . . . . . . . . . . 2 . . . . . . . . . . . . . . . Matter 921 | . . . . . . . . . . . . 570 . . . . . . . . . . . . 351 . . Time 321 | . . . . . . . . . . . . 228 . . . . . . . . . . . . 93 . . Total Part Build Rating 10 | . . . . . . . . . . . . 10 . . . . . . . . . . . . . . . Parts Repaired . | . . . . . . . . . . . . . . . . . . . . . . . . . . . . Time . | . . . . . . . . . . . . . . . . . . . . . . . . . . . . Parts Recycled . | . . . . . . . . . . . . . . . . . . . . . . . . . . . . Recycled Matter . | . . . . . . . . . . . . . . . . . . . . . . . . . . . . Retrieved Matter . | . . . . . . . . . . . . . . . . . . . . . . . . . . . . Retrieved Components 2 | . 2 . . . . . . . . . . . . . . . . . . . . . . . . . . Parts Scanalyzed 4 | . . . . . . . 1 . . . . 2 . . . . . . . . . 1 . . . . . Part Schematics Acquired 4 | . . . . . . . 1 . . . . 2 . . . . . . . . . 1 . . . . . Parts Damaged . | . . . . . . . . . . . . . . . . . . . . . . . . . . . . Bothacking | -11 -10 -10 -10 -9 -8 -7 -6 -6 -6 -6 -5 -5 -5 -5 -5 -4 -4 -4 -4 -4 -3 -3 -3 -3 -2 -1 -1 ------------ Run | Scr Mat Min Exi Min Mat Fac Fac Low Low Dat Pro Fac Upp Upp Zhi Pro Fac Upp Upp War Pro Res Arm Lab Res Acc Com Used RIF Installer . | . . . . . . . . . . . . . . . . . . . . . . . . . . . . Robots Hacked . | . . . . . . . . . . . . . . . . . . . . . . . . . . . . Non-combat . | . . . . . . . . . . . . . . . . . . . . . . . . . . . . Combat . | . . . . . . . . . . . . . . . . . . . . . . . . . . . . Robot Hacks Applied . | . . . . . . . . . . . . . . . . . . . . . . . . . . . . Relay Couplers Released . | . . . . . . . . . . . . . . . . . . . . . . . . . . . . Robots Rewired 4 | . . . . . . . . . . . . . . . . . . . . . . . 4 . . . . Allies Hacked . | . . . . . . . . . . . . . . . . . . . . . . . . . . . . Hacks Repelled 1 | . . . . . . . . . . . . . . . . . . . . . . . . . . . 1 Allies | -11 -10 -10 -10 -9 -8 -7 -6 -6 -6 -6 -5 -5 -5 -5 -5 -4 -4 -4 -4 -4 -3 -3 -3 -3 -2 -1 -1 -------- Run | Scr Mat Min Exi Min Mat Fac Fac Low Low Dat Pro Fac Upp Upp Zhi Pro Fac Upp Upp War Pro Res Arm Lab Res Acc Com Total Allies 5 | . . . . . . . . . . . 1 . . . . . . . . . . . 4 . . . . Largest Group 4 | . . . . . . . . . . . 1 . . . . . . . . . . . 4 . . . . Highest-Rated Group 224 | . . . . . . . . . . . 95 . . . . . . . . . . . 224 . . . . Highest-Rated Ally 95 | . . . . . . . . . . . 95 . . . . . . . . . . . 56 . . . . Total Orders . | . . . . . . . . . . . . . . . . . . . . . . . . . . . . Ally Attacks 48 | . . . . . . . . . . . 11 . . . . . . . . . . . 25 . . 7 5 Total Damage 1104 | . . . . . . . . . . . 197 . . . . . . . . . . . 907 . . . . Kills 7 | . . . . . . . . . . . 3 . . . . . . . . . . . 4 . . . . Allies Corrupted . | . . . . . . . . . . . . . . . . . . . . . . . . . . . . Allies Melted . | . . . . . . . . . . . . . . . . . . . . . . . . . . . . Intel | -11 -10 -10 -10 -9 -8 -7 -6 -6 -6 -6 -5 -5 -5 -5 -5 -4 -4 -4 -4 -4 -3 -3 -3 -3 -2 -1 -1 ------- Run | Scr Mat Min Exi Min Mat Fac Fac Low Low Dat Pro Fac Upp Upp Zhi Pro Fac Upp Upp War Pro Res Arm Lab Res Acc Com Robot Analysis Total 4 | . . . . . . . . . . . . . . . 4 . . . . . . . . . . . . Derelict Logs Recovered 8 | . . 1 . 1 . . . 1 . . . . 1 1 . 1 . 1 1 . . . . . . . . Drone Launches 12 | . . . . . . . . . . . . . . . . . . . . . . . . . . 7 5 Drone Recoveries . | . . . . . . . . . . . . . . . . . . . . . . . . . . . . Exploration | -11 -10 -10 -10 -9 -8 -7 -6 -6 -6 -6 -5 -5 -5 -5 -5 -4 -4 -4 -4 -4 -3 -3 -3 -3 -2 -1 -1 ------------- Run | Scr Mat Min Exi Min Mat Fac Fac Low Low Dat Pro Fac Upp Upp Zhi Pro Fac Upp Upp War Pro Res Arm Lab Res Acc Com Turns Passed 4650 | 29 160 200 108 37 45 265 278 84 100 28 240 579 183 83 44 309 162 77 54 161 173 71 125 44 100 173 738 Spaces Moved 11273 | 28 246 368 212 66 113 620 670 227 239 82 518 1016 699 308 140 461 495 289 205 577 675 256 345 99 369 521 1429 Core 953 | 28 246 368 212 57 . . . . . . . . . . . . . . . . . . . . . . 42 Treads . | . . . . . . . . . . . . . . . . . . . . . . . . . . . . Legs . | . . . . . . . . . . . . . . . . . . . . . . . . . . . . Wheels . | . . . . . . . . . . . . . . . . . . . . . . . . . . . . Hover . | . . . . . . . . . . . . . . . . . . . . . . . . . . . . Flight 10320 | . . . . 9 113 620 670 227 239 82 518 1016 699 308 140 461 495 289 205 577 675 256 345 99 369 521 1387 Fastest Speed 20 | 50 50 50 50 40 40 37 31 34 34 34 28 26 26 26 26 26 26 26 26 24 24 24 24 24 24 24 20 Average Speed 29 | 91 51 50 50 48 40 37 34 34 34 34 33 26 26 26 26 26 26 26 26 24 24 24 24 24 24 25 23 Slowest Speed 107 | 100 100 50 50 50 40 40 37 34 34 34 34 107 26 26 26 26 28 26 26 26 24 24 24 24 24 32 50 Overloaded Moves 12 | . . . . . . . . . . . . . . . . . . . . . . . . . . 12 . Propulsion Burnouts . | . . . . . . . . . . . . . . . . . . . . . . . . . . . . Robots Hopped 35 | . . . . . . 5 7 . 3 . . 2 . . . 1 4 . . . . . . . 7 1 5 Cave-ins Triggered . | . . . . . . . . . . . . . . . . . . . . . . . . . . . . Teleports 2 | . . . . . . . . . . . . . . . . . . . . . . . 1 . . 1 . Exploration Rate (%) 43 | 3 46 47 60 25 16 18 22 42 43 70 57 31 78 48 60 57 22 51 46 80 66 12 26 99 16 21 45 Regions Visited 27 Branch Regions 18 Pre-discovered Areas 7 | . . 1 1 . . . . . . 1 . . . . 3 1 . . . . . . . . . . . Known Exits Taken 21 | . 1 . . . . . 1 1 1 1 1 1 1 1 1 1 1 1 1 1 1 1 1 1 1 1 . Unknown Exits Taken 6 | 1 . 1 1 1 1 1 . . . . . . . . . . . . . . . . . . . . . Scrap Searched 10 | . . . . . . . . 3 1 . . . 1 . . . . 1 2 . 2 . . . . . . Spaces Dug 73 | . . . . . . 2 3 . 1 . 4 10 . . . 14 6 . . . 4 3 5 . 2 1 18 Terrain Destroyed 89 | . . . . . . 2 3 16 1 . 4 10 . . . 14 6 . . . 4 3 5 . 2 1 18 Melee 73 | . . . . . . 2 3 . 1 . 4 10 . . . 14 6 . . . 4 3 5 . 2 1 18 Projectile . | . . . . . . . . . . . . . . . . . . . . . . . . . . . . AOE 16 | . . . . . . . . 16 . . . . . . . . . . . . . . . . . . . Terrain Rammed . | . . . . . . . . . . . . . . . . . . . . . . . . . . . . Walls Destroyed . | . . . . . . . . . . . . . . . . . . . . . . . . . . . . Machines Disabled . | . . . . . . . . . . . . . . . . . . . . . . . . . . . . Actions | -11 -10 -10 -10 -9 -8 -7 -6 -6 -6 -6 -5 -5 -5 -5 -5 -4 -4 -4 -4 -4 -3 -3 -3 -3 -2 -1 -1 --------- Run | Scr Mat Min Exi Min Mat Fac Fac Low Low Dat Pro Fac Upp Upp Zhi Pro Fac Upp Upp War Pro Res Arm Lab Res Acc Com Total 12270 | 30 263 383 213 71 112 635 689 231 252 81 576 1286 699 308 146 627 508 289 204 594 678 260 374 109 368 553 1731 Wait 684 | . . 12 . . . 5 . . 16 . 49 227 . . . 153 . . . . . . . 2 . 18 202 Move 11180 | 27 245 367 211 65 112 609 657 226 233 81 517 1011 698 307 139 458 486 288 204 576 674 255 344 98 354 518 1420 Hop 31 | . . . . . . 5 5 . 2 . . 2 . . . 1 4 . . . . . . . 7 1 4 Pick Up 20 | . 5 . 1 . . 2 1 . . . . 4 . . 1 . . . . 2 . . . 1 . 1 2 Fast Attach 75 | 3 1 1 . 1 . 9 6 . . . 3 12 . . 3 . 5 . . 7 . . . 3 4 1 16 Attach 24 | . 1 . . 2 . 2 1 . . . . 1 . . . . . . . . . 1 2 . . 4 10 Detach 12 | . 1 . . 1 . . . . . . . 1 . . . . . . . . . 1 . . . 4 4 Swap 9 | . . . . . . . 1 2 . . . 3 1 . . . 1 1 . . . . . . . . . Drop 38 | . 1 1 1 2 . . 4 1 . . 2 6 . . 3 . 4 . . 9 . . . . 1 . 3 Fire 25 | . 9 . . . . . . 2 . . . . . . . . . . . . . . . . . . 14 Melee 149 | . . . . . . 3 14 . 1 . 5 19 . 1 . 14 8 . . . 4 3 8 5 2 6 56 Ram 2 | . . 2 . . . . . . . . . . . . . . . . . . . . . . . . . Kick . | . . . . . . . . . . . . . . . . . . . . . . . . . . . . Crush . | . . . . . . . . . . . . . . . . . . . . . . . . . . . . Escape Stasis 8 | . . . . . . . . . . . . . . . . . . . . . . . 8 . . . . Rewire 12 | . . . . . . . . . . . . . . . . . . . . . . . 12 . . . . Trap 1 | . . . . . . . . . . . . . . . . 1 . . . . . . . . . . . Miscellaneous . | . . . . . . . . . . . . . . . . . . . . . . . . . . . . Route ------- -11/Scrapyard -10/Materials (discovered 3 exits: [*Mat x2] / *Min) -10/Mines (discovered 3 exits: [*Mat x2] / *Exi) -10/Exiles -9/Mines -8/Materials -7/Factory (discovered 3 exits: *Fac / Low x2) -6/Factory -6/Lower Caves -6/Lower Caves -6/Data Miner -5/Proximity Caves -5/Factory (discovered 2 exits: *Upp / Ext) -5/Upper Caves -5/Upper Caves (discovered 2 exits: *Fac / *Zhi) -5/Zhirov -4/Proximity Caves -4/Factory (discovered 3 exits: *Res x2 / *Upp) -4/Upper Caves -4/Upper Caves -4/Warlord -3/Proximity Caves -3/Research (discovered 3 exits: *Arm / Qua x2) -3/Armory -3/Lab -2/Research (discovered 3 exits: *Acc x3) -1/Access -1/Command (discovered 2 exits: Sur x2) History --------- Turn | Location | Event 10 | -11/Scrapyard | Discovered new exit (range 16) 30 | -11/Scrapyard | Entered Materials 120 | -10/Materials | Discovered new exit (range 10) 173 | -10/Materials | Discovered new exit (range 5) 181 | -10/Materials | Identified exit to Mines 190 | -10/Materials | Entered Mines 196 | -10/Mines | Discovered new exit (range 11) 240 | -10/Mines | Discovered new exit (range 7) 275 | -10/Mines | Learned location of Zion (-7) 318 | -10/Mines | Build established: Mutant 332 | -10/Mines | YI-UF0 nonchalantly dropped a Grenade Launcher on the ground 388 | -10/Mines | Deemed a non-threat by the Exiles lab entrance 388 | -10/Mines | Discovered new exit (range 5) 390 | -10/Mines | Entered Exiles 402 | -10/Exiles | Met 8R-AWN 411 | -10/Exiles | Met EX-HEX 425 | -10/Exiles | Met EX-BIN 431 | -10/Exiles | Aligned with FarCom system 431 | -10/Exiles | Given EX-Vault access code 444 | -10/Exiles | Opened EX-Vault 450 | -10/Exiles | Found Longsword +1 461 | -10/Exiles | Warned to stay clear of 0b10 Research branches 475 | -10/Exiles | Met EX-DEC 492 | -10/Exiles | Discovered new exit (range 12) 498 | -10/Exiles | Left Exiles lab with Longsword +1 498 | -10/Exiles | Entered Mines 519 | -9/Mines | Discovered new exit (range 10) 524 | -9/Mines | Found the Drone Emporium 526 | -9/Mines | Learned Materials emergency access door positions 527 | -9/Mines | Found Prototype Device 527 | -9/Mines | Identified Bomb Drone Bay 535 | -9/Mines | Entered Materials 535 | -8/Materials | Evolved 4 slots: Propulsion x2, Utility x2 567 | -8/Materials | Discovered new exit (range 15) 580 | -8/Materials | Entered Factory 580 | -7/Factory | Evolved 2 slots: Propulsion x1, Utility x1 643 | -7/Factory | Identified exit to Lower Caves 809 | -7/Factory | Discovered new exit (range 12) 845 | -7/Factory | Entered another Factory area 845 | -6/Factory | Evolved 2 slots: Propulsion x1, Utility x1 1099 | -6/Factory | Discovered new exit (range 9) 1123 | -6/Factory | Identified exit to Lower Caves 1123 | -6/Factory | Entered Lower Caves 1200 | -6/Lower Caves | Learned location of 2 exits from Factory 1205 | -6/Lower Caves | Discovered new exit (range 9) 1207 | -6/Lower Caves | Identified exit to Lower Caves 1207 | -6/Lower Caves | Entered another Lower Caves area 1304 | -6/Lower Caves | Discovered new exit (range 9) 1307 | -6/Lower Caves | Identified exit to Data Miner 1307 | -6/Lower Caves | Entered Data Miner 1307 | -6/Data Miner | Discovered new exit (range 6) 1314 | -6/Data Miner | Met Data Miner 1321 | -6/Data Miner | Learned location of Section 7 (-3) 1321 | -6/Data Miner | Acquired the access code to Warlord's prototype stash 1327 | -6/Data Miner | Received God Mode back door access code from Data Miner 1335 | -6/Data Miner | Identified exit to Proximity Caves 1335 | -6/Data Miner | Entered Proximity Caves 1454 | -5/Proximity Caves | Found Alien Artifact 1454 | -5/Proximity Caves | Identified Dimensional Node Initializer 1454 | -5/Proximity Caves | Initialized slip node 1480 | -5/Proximity Caves | Escorted by Enhanced Grunt 1572 | -5/Proximity Caves | Discovered new exit (range 14) 1575 | -5/Proximity Caves | Identified exit to Factory 1575 | -5/Proximity Caves | Entered Factory 1575 | -5/Factory | Evolved 2 slots: Power x1, Utility x1 1576 | -5/Factory | Identified exit to Extension 1576 | -5/Factory | Identified exit to Upper Caves 1613 | -5/Factory | Incoming investigation squad redirected 1970 | -5/Factory | Fabricated Lgt. Regenerative Plating (x1) 2046 | -5/Factory | Build established: Hacker-Sprinter 2060 | -5/Factory | Fabricated Cld. Cesium-ion Thruster? 2070 | -5/Factory | Assembled infested ambush trap array 2122 | -5/Factory | Incoming assault squad redirected 2154 | -5/Factory | Entered Upper Caves 2337 | -5/Upper Caves | Discovered new exit (range 5) 2337 | -5/Upper Caves | Identified exit to Upper Caves 2337 | -5/Upper Caves | Entered another Upper Caves area 2353 | -5/Upper Caves | Discovered new exit (range 7) 2354 | -5/Upper Caves | Identified exit to Factory 2387 | -5/Upper Caves | Learned 12 Factory zone layouts 2400 | -5/Upper Caves | Acquired the password to a Derelict Tinkerer's latest research 2415 | -5/Upper Caves | Discovered new exit (range 4) 2416 | -5/Upper Caves | Identified exit to Zhirov 2420 | -5/Upper Caves | Entered Zhirov 2420 | -5/Zhirov | Discovered new exit (range 3) 2425 | -5/Zhirov | Met Zhirov 2430 | -5/Zhirov | Learned location of Quarantine (-3) 2430 | -5/Zhirov | Learned location of Testing (-2) 2430 | -5/Zhirov | Learned location of Command (-1) 2432 | -5/Zhirov | Zhirov requested help retrieving the SGEMP Prototype 2438 | -5/Zhirov | Found Alien Artifact 2438 | -5/Zhirov | Identified Integrated Dissipator 2438 | -5/Zhirov | Installed Integrated Dissipator, increased core heat dissipation (+20) 2452 | -5/Zhirov | Found Alien Artifact 2463 | -5/Zhirov | Identified exit to Proximity Caves 2464 | -5/Zhirov | Entered Proximity Caves 2484 | -4/Proximity Caves | Learned location of Armory (-3) 2771 | -4/Proximity Caves | Discovered exit to Factory (range 11) 2773 | -4/Proximity Caves | Entered Factory 2773 | -4/Factory | Evolved 2 slots: Propulsion x1, Utility x1 2774 | -4/Factory | Identified exit to Research 2774 | -4/Factory | Identified exit to Upper Caves 2909 | -4/Factory | Spotted B-86 Titan 2935 | -4/Factory | Entered Upper Caves 2981 | -4/Upper Caves | Learned Research interactive machine intel 3009 | -4/Upper Caves | Discovered new exit (range 13) 3012 | -4/Upper Caves | Identified exit to Upper Caves 3012 | -4/Upper Caves | Entered another Upper Caves area 3013 | -4/Upper Caves | Identified exit to Warlord 3028 | -4/Upper Caves | Learned Research security intel 3066 | -4/Upper Caves | Entered Warlord 3099 | -4/Warlord | Found Prototype Device 3099 | -4/Warlord | Identified Minesniffer Drone Bay 3110 | -4/Warlord | Visited the Vortex Lab 3132 | -4/Warlord | Warlord's base attacked by MAIN.C 3135 | -4/Warlord | Met Warlord 3139 | -4/Warlord | Opened Warlord's prototype stash 3143 | -4/Warlord | Found Prototype Device 3143 | -4/Warlord | Identified Exp. Focal Shield 3152 | -4/Warlord | Found Prototype Hackware 3152 | -4/Warlord | Identified Ghost Barrier 3221 | -4/Warlord | Opened side exit 3226 | -4/Warlord | Discovered new exit (range 8) 3227 | -4/Warlord | Identified exit to Proximity Caves 3227 | -4/Warlord | Entered Proximity Caves 3397 | -3/Proximity Caves | Discovered exit to Research (range 13) 3399 | -3/Proximity Caves | Attracted the attention of an 0b10 checkpoint 3400 | -3/Proximity Caves | Entered Research 3400 | -3/Research | Evolved 2 slots: Utility x2 3402 | -3/Research | Loaded intel: 42 interactive machine locations 3452 | -3/Research | Identified exit to Armory 3452 | -3/Research | Identified exit to Quarantine 3471 | -3/Research | Entered Armory 3595 | -3/Armory | Identified Transdimensional Reconstructor 3595 | -3/Armory | Warped through subspace to slip node 3595 | -3/Armory | Discovered new exit (range 1) 3595 | -3/Armory | Identified exit to Lab 3596 | -3/Armory | Entered Lab 3596 | -3/Lab | Discovered new exit (range 9) 3598 | -3/Lab | Identified exit to Research 3599 | -3/Lab | Unable to decrypt terminal 3599 | -3/Lab | Opened the door to a hidden lab 3600 | -3/Lab | Gained access to the hidden lab's interior 3602 | -3/Lab | Detected by scanners 3606 | -3/Lab | Found Transdimensional Reconstructor 3610 | -3/Lab | Found Alien Artifact 3610 | -3/Lab | Identified Integrated Reactor 3610 | -3/Lab | Installed Integrated Reactor, increased core energy generation (+10) 3611 | -3/Lab | Confronted by A5 3618 | -3/Lab | Found Alien Artifact 3618 | -3/Lab | Identified Core Regenerator 3618 | -3/Lab | Used Core Regenerator, restored core integrity (+88) 3628 | -3/Lab | Found Prototype Hackware 3628 | -3/Lab | Identified Deep Network Scanner 3640 | -3/Lab | Entered Research 3640 | -2/Research | Warlord forces began assault on 0b10 3640 | -2/Research | Evolved 2 slots: Utility x2 3720 | -2/Research | Identified exit to Access 3740 | -2/Research | Entered Access 3740 | -1/Access | Evolved 2 slots: Utility x2 3783 | -1/Access | Spotted B-99 Colossus 3815 | -1/Access | Identified exit to Command 3817 | -1/Access | Intercept squad dispatched 3824 | -1/Access | Spotted Tracker 3825 | -1/Access | Warped through subspace 3825 | -1/Access | Spotted Tracker 3902 | -1/Access | Build established: Wizard-Sprinter 3905 | -1/Access | Spotted B-99 Colossus 3905 | -1/Access | Spotted B-99 Colossus 3913 | -1/Access | Entered Command 3946 | -1/Command | Identified exit to Surface 4061 | -1/Command | Spotted B-99 Colossus 4127 | -1/Command | Disengaged cave seal 4127 | -1/Command | Derelicts emerged from the dark tunnel 4127 | -1/Command | Welcomed Warlord to Command 4233 | -1/Command | Spotted B-99 Colossus 4300 | -1/Command | Disengaged cave seal 4307 | -1/Command | Incoming investigation squad redirected 4323 | -1/Command | Spotted M Guard 4323 | -1/Command | Spotted M Guard 4326 | -1/Command | Spotted Combat Programmer 4327 | -1/Command | Spotted Combat Programmer 4343 | -1/Command | Destroyed Combat Programmer 4389 | -1/Command | Warlord commented on Warlord statues 4404 | -1/Command | Core integrity fell below 50% 4404 | -1/Command | All MAIN.C guards destroyed 4430 | -1/Command | Lost 13 parts (1p5n6u1w) 4467 | -1/Command | Met MAIN.C 4476 | -1/Command | Warlord shut down involuntarily 4482 | -1/Command | 0b10 Conduit disabled 4488 | -1/Command | Spotted DT-OGT(L) 4511 | -1/Command | Core integrity fell below 20% 4570 | -1/Command | Lost 8 parts (1p4n2u1w) 4614 | -1/Command | MAIN.C activated Command garrisons 4638 | -1/Command | P-80 Master assimilated allied NH-F44(L) 4639 | -1/Command | Spotted NH-F44(L) 4651 | -1/Command | Destroyed by P-80 Master with Gamma Rifle Last Messages --------------- 04639_ 7T-3KQ(M) destroyed. 04640_ S7-GNG(M) system terminally corrupted. 04640_ K-01 Serf collects debris. 04641_ S-43 Plague suffers critical hit. 04641_ S-43 Plague destroyed. 04642_ Slug penetrates 0F-0E1(M). 04642_ 0F-0E1(M) suffers critical hit. 04642_ 0F-0E1(M) destroyed. 04642_ RL-ATT(M) suffers critical hit. 04642_ RL-ATT(M) destroyed. 04643_ K-01 Serf collects debris. 04643_ K-01 Serf destroyed. 04645_ P-80 Master fails to hack Z5-LRY(g). 04645_ Z5-LRY(g) Lyr. Medium Armor Plating severed. 04646_ K-01 Serf collects debris. 04646_ K-01 Serf destroyed. 04646_ Imp. Targeting Computer destroyed. 04649_ K-01 Serf collects debris. 04650_ C-30 ARC bursts open, deploying its payload. 04650_ S-43 Plague unfolds itself. Map ----- +----------------------------------------------------+ | ?????????????????????# # + ! #+# | | ?????????????????????# # # # | | ?????????????????????# / # = # | | ?????????????????????# # ########"" | | ?????????????????????# # #??????#"" | | ???????###########???# #### # #??????#"" | | ######?# #???#^ #??# # #??????#T | | ### #???# #??# # #??????#"" | | #### " ##### ####/###+#####??????#"" | | # """ + # #??????????#"" | | # ]%""" ##### # #??????????# | | ### # # #???# # "" #??????????# | | ## ### #???# # """#?????????## | | # # ## = #???# # T"#?????????# | | # ##### ### ####### # ! """#?????????# ## | | # "" #?????????##?? | | * ! % # #????????????? | | % =%! ! %! + #????????????? | | = ]**! %!ss %% # #????????????? | | !%%%=% s% s % + #????????????? | | =! ### *# ## ## "" ##???????????? | | # ## # * ### ## """" #???????????? | | ## ## ! !% #?# ## """" ##???????????? | | # # # =[*%"%* #?# ## "" #????????????? | | ### # *%[[=" #?# ## #????????????? | | ??######|=/%!" #?# @## ! #????????????? | | ???????#%=%*= #?# ## #????????????? | | ???????#=/!%= #?# # ### #####????????????? | | ???????# %! #?# ##????????????????? | | ??##########+ ######s #?????????????????? | | ??# "" # !%! s #?????????????????? | | ??# """" # ! s k #?????????????????? | | ??# """" # sp%s #?????????????????? | | ??# "" # !s s #?????????????????? | | ??# + s=* #?????????????????? | | ??# # =pgp= #?????????????????? | | ??# +!p!p!! #?????????????????? | | ??# ! # #g############ #?############????? | | ??# # #[lpg????????# # #????? | | ??# # #pMg #??????# # #????? | | ??# | # # ! #??????# + #????? | | ??# #"# * #??????# # / #????? | | ??########## + #??????# # #????? | | ???######??# # #??????# #?### " " ####????? | | ???# #### # #??????#++++#?????"R""#???????? | | ???# = # #???????????????????""#???????? | | ???# * + #????????????????????##???????? | | ???# ###### ##+###????????????????????????????? | | ???## ##???# #????????????????????????????? | | ????# #????# #????????????????????????????? | +----------------------------------------------------+ Best States ------------- Heat Dissipation 72 Energy Generation 45 Energy Capacity 740 Matter Stores 300 Matter Capacity 300 Sight Range 22 Robot Scan Range 16 Terrain Scan Density 210 Additional Mass Support 16 Armor Coverage 375 Resistance: KI 30 Utility Shielding 33 Weapon Shielding 66 Point Defense Rating 160 Evasion (%) 66 Targeting Accuracy 6 Offensive Hacking 39 Defensive Hacking 34 Item Schematics ----------------- Cld. VTOL Module | -6/Factory | Scanalyzed Combat Drone Bay | -6/Data Miner | Free Lgt. Regenerative Plating | -6/Data Miner | Free Exp. Cesium-ion Thruster | -6/Data Miner | Free Cld. Cesium-ion Thruster | -5/Factory | Scanalyzed Mic. Fission Core | -5/Factory | Scanalyzed Assault Drone Bay | -5/Zhirov | Free Exp. Heat Sink | -5/Zhirov | Free Exp. Optical Array | -5/Zhirov | Free Imp. Arc Thrower | -5/Zhirov | Free Imp. Diametric Drive | -3/Research | Scanalyzed Robot Schematics ------------------ S-27 Virus | -6/Data Miner | Free G-50 Soldier | -6/Data Miner | Free G-67 Veteran | -6/Data Miner | Free P-70 Sage | -6/Data Miner | Free I-36 Angel | -6/Data Miner | Free Fabricated ------------ Lgt. Regenerative Plating | x1 | -5/Factory Cld. Cesium-ion Thruster | x1 | -5/Factory Alien Tech Used ----------------- Dimensional Node Initializer Integrated Dissipator Transdimensional Reconstructor Integrated Reactor Core Regenerator Achievements -------------- None Challenges ------------ None Game ------ Seed CoolantRemoteClaws Manual? 0 Play Time 02:10:58 Cumulative 583.2 hours Start 2021.03.02 @ 19:38:28 End 2021.03.02 @ 23:03:51 Sessions 5 Manual Loads 0 Difficulty Rogue Special Mode None Game No. 456 Rogue 456 Adventurer 0 Explorer 0 Win Type - Total 153 Types 86/8/42/6/3/2/4/1/1 Lore% 98 Gallery% 95 Achievement% 84 Wizard Run 0 Options --------- ASCII 1 Keyboard 0 Movement Vi Keybinds 0 Fullscreen 0 Font 16/Smallcaps Map View 86x75 Tactical HUD 1 Map Filters NONE Filters NONE Steam 1 RUN: 6809d91c-ff17-4032-99dc-f2dc5e42c670